bitfinex/quotes_SOLUSD_20211001
["timestamp","ask_amount","ask_price","bid_price","bid_amount"]
[1633116452227,2.58,163.58,163.42,2.58]
[1633116452427,2.58,163.58,163.42,47.12628163]
[1633116453131,432.90533855,163.6,163.42,47.12628163]
[1633116453329,462.05802536,163.6,163.42,22.129]
[1633116453535,462.05802536,163.6,163.42,47.12628163]
[1633116457235,462.05802536,163.6,163.42,74.67143863]
[1633116458633,462.07978536,163.6,163.42,74.67143863]
[1633116459836,462.07978536,163.6,163.42,47.12628163]
[1633116460736,462.07978536,163.6,163.43,27.545157]
[1633116460940,462.07978536,163.6,163.44,2.58]
[1633116461537,462.07978536,163.6,163.45,24.99728163]
[1633116461738,462.07978536,163.6,163.46,2.58]
[1633116463341,29.17444681,163.6,163.46,2.58]
[1633116464941,29.17444681,163.6,163.46,28.94950385]
[1633116465142,29.17444681,163.6,163.46,2.58]
[1633116467843,29.17444681,163.6,163.46,28.94950385]
[1633116468651,29.15268681,163.6,163.46,28.94950385]
[1633116470349,29.15268681,163.6,163.46,2.58]
[1633116472951,77.0923,163.63,163.46,2.58]
[1633116473754,74.5123,163.63,163.46,30.24950385]
[1633116473952,0.02176,163.66,163.5,64.46]
[1633116474153,0.02176,163.67,163.53,64.46]
[1633116474353,0.02176,163.7,163.54,67.04]
[1633116474554,0.02176,163.74,163.54,114.08965621]
[1633116474754,0.02176,163.74,163.54,137.57765621]
[1633116474953,28.29475221,163.74,163.55,47.04965621]
[1633116475158,28.27299221,163.74,163.56,81.7377]
[1633116475355,28.27299221,163.74,163.56,128.78735621]
[1633116475556,28.27299221,163.74,163.57,28.89728163]
[1633116475755,0.02176,163.77,163.58,2.58]
[1633116475958,0.02176,163.78,163.58,2.58]
[1633116476158,0.02176,163.78,163.59,28.89728163]
[1633116476364,0.02176,163.78,163.6,2.58]
[1633116476755,29.47257186,163.78,163.61,28.89728163]
[1633116476958,29.45081186,163.78,163.62,2.58]
[1633116477555,29.45081186,163.78,163.62,31.47728163]
[1633116477756,29.45081186,163.78,163.62,49.9185451]
[1633116480657,372.86178878,163.79,163.62,65.2875451]
[1633116481062,3.0,163.8,163.62,92.9061604]
[1633116481657,26.53096754,163.79,163.62,92.9061604]
[1633116481859,26.53096754,163.79,163.62,21.02126347]
[1633116482159,78.9332269,163.79,163.62,2.58]
[1633116482358,0.02176,163.75,163.58,2.58]
[1633116482558,28.51482666,163.73,163.58,2.58]
[1633116482763,0.02176,163.71,163.55,2.58]
[1633116482965,23.84238836,163.69,163.55,2.58]
[1633116483159,0.02176,163.68,163.55,2.58]
[1633116483360,29.75574488,163.66,163.55,2.58]
[1633116484160,29.75574488,163.66,163.55,31.47728163]
[1633116484559,29.75574488,163.66,163.55,2.58]
[1633116486165,383.87008661,163.69,163.55,30.77672607]
[1633116487563,383.87008661,163.69,163.55,119.87534137]
[1633116487763,383.87008661,163.69,163.55,156.47688484]
[1633116487967,383.87008661,163.69,163.56,0.0204488]
[1633116488163,383.87008661,163.69,163.57,2.58]
[1633116488366,2.58,163.77,163.57,2.58]
[1633116488562,29.51905448,163.68,163.57,2.58]
[1633116489363,29.51905448,163.68,163.5,28.21717487]
[1633116489564,2.58,163.67,163.51,2.58]
[1633116490162,2.58,163.67,163.51,30.77672607]
[1633116490864,2.58,163.67,163.51,58.39534137]
[1633116501273,23.158,163.67,163.51,58.39534137]
[1633116501473,0.02176,163.66,163.51,2.58]
[1633116501672,2.58,163.65,163.51,2.58]
[1633116501876,29.97907898,163.64,163.51,2.58]
[1633116502074,32.55907898,163.64,163.51,2.58]
[1633116505981,32.55907898,163.64,163.51,30.77672607]
[1633116506780,32.55907898,163.64,163.51,2.58]
[1633116509088,32.55907898,163.64,163.48,2.58]
[1633116510086,0.02176,163.63,163.48,2.58]
[1633116510282,2.58,163.62,163.48,2.58]
[1633116510482,28.32305304,163.61,163.43,2.58]
[1633116510684,2.58,163.6,163.43,2.58]
[1633116511684,0.02176,163.59,163.43,2.58]
[1633116511883,29.3918807,163.57,163.43,2.58]
[1633116512086,2.58,163.56,163.43,2.58]
[1633116513084,2.58,163.56,163.43,58.39534137]
[1633116522893,2.58,163.56,163.43,62.95197163]
[1633116523289,2.58,163.56,163.44,72.1704]
[1633116523690,23.93954526,163.58,163.45,2.58]
[1633116524089,2.58,163.59,163.45,2.58]
[1633116524291,2.58,163.62,163.46,55.81534137]
[1633116524491,2.58,163.62,163.47,2.58]
[1633116524693,2.58,163.62,163.47,58.39534137]
[1633116524892,2.58,163.62,163.48,55.81534137]
[1633116525098,2.58,163.62,163.49,2.58]
[1633116525894,2.58,163.65,163.49,2.58]
[1633116526093,2.58,163.65,163.49,58.39534137]
[1633116526297,2.58,163.65,163.49,73.28310706]
[1633116526896,0.02176,163.66,163.49,152.17510706]
[1633116527094,28.70156666,163.69,163.5,9.51330826]
[1633116527294,26.12156666,163.69,163.51,2.58]
[1633116527496,26.12156666,163.69,163.51,135.12421817]
[1633116527698,26.12156666,163.69,163.52,71.03977095]
[1633116527897,76.02616,163.7,163.53,2.58]
[1633116528097,76.02616,163.7,163.53,73.61977095]
[1633116528498,76.02616,163.7,163.54,43.27637821]
[1633116528702,76.02616,163.7,163.55,2.58]
[1633116529099,76.02616,163.7,163.56,6.46495033]
[1633116529319,76.02616,163.7,163.57,2.58]
[1633116530101,0.02176,163.7,163.57,2.58]
[1633116530502,28.75008034,163.68,163.57,2.58]
[1633116531600,0.02176,163.67,163.57,2.58]
[1633116533903,28.75008034,163.68,163.57,2.58]
[1633116540507,31.33008034,163.68,163.54,2.58]
[1633116540709,0.02176,163.67,163.54,2.58]
[1633116541107,2.58,163.66,163.52,77.2847]
[1633116541322,26.83580854,163.65,163.52,77.2847]
[1633116541506,29.41580854,163.65,163.51,2.58]
[1633116544511,2.58,163.65,163.51,2.58]
[1633116544709,2.58,163.65,163.51,30.17416808]
[1633116545513,28.74270794,163.7,163.52,6.44547227]
[1633116545714,28.74270794,163.7,163.53,2.58]
[1633116545912,28.74270794,163.7,163.53,56.85422748]
[1633116548211,28.74270794,163.7,163.54,6.39533647]
[1633116548420,28.74270794,163.7,163.55,2.58]
[1633116553617,28.76446794,163.7,163.55,2.58]
[1633116554016,0.02176,163.69,163.5,5.7359398]
[1633116554216,27.72483361,163.67,163.51,6.54792024]
[1633116554416,2.60176,163.66,163.51,6.54792024]
[1633116555619,0.02176,163.65,163.5,76.5549]
[1633116555816,25.38244572,163.63,163.5,76.5549]
[1633116556016,2.60176,163.62,163.48,3.16621485]
[1633116556219,0.02176,163.61,163.48,9.72692464]
[1633116556416,27.43110968,163.59,163.48,9.72692464]
[1633116556618,27.43110968,163.59,163.46,9.78934963]
[1633116556619,2.58,163.58,163.46,9.78934963]
[1633116557216,2.58,163.58,163.46,6.60353614]
[1633116559718,2.58,163.58,163.44,3.26842332]
[1633116560320,2.58,163.58,163.43,10.08182607]
[1633116561120,2.58,163.58,163.43,6.79808037]
[1633116561318,2.58,163.58,163.42,2.58]
[1633116561920,2.58,163.58,163.43,6.88033878]
[1633116562121,2.58,163.58,163.42,2.58]
[1633116562821,2.58,163.58,163.43,6.89049626]
[1633116563025,2.58,163.58,163.43,10.20135624]
[1633116563222,2.58,163.58,163.43,6.89049626]
[1633116563621,2.58,163.58,163.42,30.10700141]
[1633116563822,2.58,163.58,163.43,6.86943051]
[1633116564524,2.58,163.58,163.43,34.39643192]
[1633116564723,2.58,163.58,163.44,6.86363465]
[1633116565340,2.58,163.58,163.44,10.19852283]
[1633116565522,2.58,163.58,163.44,37.72552424]
[1633116565722,2.58,163.58,163.45,10.34040955]
[1633116566323,2.58,163.58,163.45,37.86741096]
[1633116566526,2.58,163.58,163.46,3.35509978]
[1633116566724,2.58,163.58,163.46,6.97939315]
[1633116569027,2.58,163.58,163.45,27.52700141]
[1633116569227,26.217,163.58,163.41,3.46427608]
[1633116569430,6.9185,163.57,163.4,7.09402279]
[1633116569627,31.00217118,163.56,163.37,82.37775502]
[1633116569827,6.94026,163.55,163.37,3.51585502]
[1633116570030,111.82216,163.54,163.36,3.52446287]
[1633116570226,31.49630691,163.53,163.35,3.53665213]
[1633116570427,2.60176,163.52,163.33,3.54348396]
[1633116570626,23.28043845,163.47,163.29,5.31540715]
[1633116570831,23.28043845,163.47,163.27,6.62972418]
[1633116570832,5.31540715,163.29,163.27,6.62972418]
[1633116571034,5.31540715,163.29,163.19,5.33896245]
[1633116571035,15.17492803,163.28,163.19,5.33896245]
[1633116571229,2.58,163.27,163.19,5.31851365]
[1633116571449,2.58,163.27,163.11,5.31611336]
[1633116571850,2.58,163.27,163.23,117.2]
[1633116574051,2.58,163.27,163.24,28.01144256]
[1633116574450,2.58,163.27,163.23,117.2]
[1633116574851,0.02176,163.26,163.23,117.2]
[1633116575052,2.58,163.25,163.23,117.2]
[1633116575254,2.58,163.25,163.09,148.9361]
[1633116575451,7.40598989,163.24,163.1,27.36589389]
[1633116575653,2.58,163.23,163.1,27.36589389]
[1633116580655,2.58,163.23,163.1,55.33531736]
[1633116581257,2.58,163.23,163.1,55.35576616]
[1633116581855,2.58,163.23,163.1,55.33531736]
[1633116582057,2.58,163.23,163.1,27.36589389]
[1633116587163,2.58,163.23,163.05,27.96942347]
[1633116588162,2.58,163.23,163.06,25.88916066]
[1633116588560,2.58,163.23,163.06,41.72316066]
[1633116588762,2.58,163.23,163.06,67.5199014]
[1633116588962,2.58,163.23,163.06,72.82616649]
[1633116589162,2.58,163.23,163.06,67.5199014]
[1633116592066,2.58,163.23,163.06,41.72316066]
[1633116592268,2.58,163.23,163.06,25.88916066]
[1633116593469,0.02176,163.22,163.06,25.88916066]
[1633116593668,2.58,163.21,163.06,25.88916066]
[1633116593867,0.02176,163.2,163.06,25.88916066]
[1633116594067,2.58,163.19,163.06,25.88916066]
[1633116595270,2.58,163.19,163.07,10.19669509]
[1633116595667,2.58,163.19,163.07,15.50929067]
[1633116596668,2.58,163.19,163.09,5.31555534]
[1633116597070,2.58,163.19,163.09,33.28228285]
[1633116598171,2.58,163.19,163.1,10.20958454]
[1633116598972,2.58,163.19,163.14,5.31907604]
[1633116599173,2.58,163.19,163.12,5.31969276]
[1633116599872,2.58,163.19,163.12,32.84882686]
[1633116600075,2.58,163.19,163.16,5.32463409]
[1633116600674,0.02176,163.18,163.14,5.32527741]
[1633116600876,2.58,163.17,163.14,5.32527741]
[1633116601080,2.60176,163.17,163.14,5.32527741]
[1633116601675,2.58,163.17,163.14,5.32527741]
[1633116602678,2.58,163.17,163.04,8.87654995]
[1633116602875,17.9981143,163.17,163.03,10.06914588]
[1633116603475,22.65250402,163.16,163.04,27.37059902]
[1633116603679,2.58,163.15,163.05,9.81397937]
[1633116608180,2.58,163.15,163.01,8.87440559]
[1633116608382,2.58,163.15,162.99,8.87536537]
[1633116608981,2.58,163.15,163.0,29.85051545]
[1633116609184,2.58,163.15,163.01,9.80881227]
[1633116610581,2.58,163.15,163.02,8.87254505]
[1633116610782,2.58,163.15,163.03,25.84480635]
[1633116611584,2.58,163.15,163.04,9.80876868]
[1633116611785,2.58,163.15,163.04,30.66476868]
[1633116611989,2.58,163.15,163.05,9.80688704]
[1633116612190,2.58,163.15,163.05,38.65082969]
[1633116612385,2.58,163.15,163.06,9.80701154]
[1633116612585,2.58,163.19,163.07,8.87081894]
[1633116612789,2.58,163.19,163.07,18.67774938]
[1633116612989,64.46,163.31,163.26,26.52393581]
[1633116613186,2.58,163.3,163.26,42.22993581]
[1633116613387,0.02176,163.37,163.26,42.22993581]
[1633116613588,2.58,163.39,163.26,44.80993581]
[1633116613986,7.77664862,163.39,163.27,23.39474979]
[1633116614185,2.58,163.39,163.28,2.58]
[1633116614786,6.9185,163.46,163.28,2.58]
[1633116614787,2.58,163.44,163.28,2.58]
[1633116614987,24.96686998,163.43,163.28,2.58]
[1633116618192,2.60176,163.42,163.26,26.52393581]
[1633116618391,0.02176,163.41,163.26,26.52393581]
[1633116618596,2.58,163.4,163.26,26.52393581]
[1633116618794,0.02176,163.39,163.26,26.52393581]
[1633116618991,2.58,163.38,163.26,26.52393581]
[1633116619192,2.60176,163.38,163.26,26.52393581]
[1633116619591,2.58,163.38,163.26,26.52393581]
[1633116620394,2.58,163.38,163.27,2.58]
[1633116620593,2.58,163.38,163.28,29.54619999]
[1633116625801,19.52194583,163.37,163.28,29.54619999]
[1633116625998,19.52194583,163.37,163.26,26.52393581]
[1633116627196,2.58,163.36,163.26,26.52393581]
[1633116627798,42.0494278,163.36,163.26,26.52393581]
[1633116627998,23.52393581,163.26,163.13,76.3161]
[1633116628199,44.78793581,163.26,163.13,76.3161]
[1633116628600,13.57479636,163.25,163.14,26.67431992]
[1633116628803,2.58,163.24,163.14,26.67431992]
[1633116628999,2.60176,163.24,163.14,26.67431992]
[1633116629799,24.05676,163.24,163.06,74.7101]
[1633116630800,24.05676,163.24,163.07,21.67615035]
[1633116631805,2.58,163.24,163.08,2.58]
[1633116632406,23.52393581,163.26,163.07,21.67615035]
[1633116632603,2.08,163.25,163.08,51.54497528]
[1633116632806,2.08,163.25,163.09,0.0204488]
[1633116633009,2.08,163.25,163.09,2.1004488]
[1633116633203,2.08,163.25,163.1,27.52446253]
[1633116633811,2.08,163.25,163.1,27.50401373]
[1633116634204,0.02176,163.24,163.1,27.50401373]
[1633116634405,2.08,163.23,163.1,27.50401373]
[1633116634604,23.96091081,163.22,163.1,27.50401373]
[1633116634804,2.08,163.21,163.1,27.50401373]
[1633116635005,2.08,163.21,163.04,2.08]
[1633116636009,2.08,163.21,163.05,24.19975319]
[1633116636407,0.02176,163.2,163.02,185.353]
[1633116636605,0.02176,163.2,162.97,471.80505554]
[1633116636606,2.08,163.19,162.97,473.88505554]
[1633116636805,0.02176,163.18,162.97,2.08]
[1633116637005,2.08,163.17,162.97,2.08]
[1633116637205,2.10176,163.17,162.97,2.08]
[1633116637405,2.10176,163.17,162.98,24.18664049]
[1633116637605,2.08,163.17,162.98,24.18664049]
[1633116637810,2.08,163.17,162.98,74.88235466]
[1633116638208,2.08,163.17,162.99,2.08]
[1633116638605,2.08,163.17,163.0,25.53856263]
[1633116639013,2.08,163.17,163.01,25.52029032]
[1633116639208,5.19058313,163.17,163.01,25.52029032]
[1633116642408,5.19058313,163.17,163.0,25.53856263]
[1633116642608,25.90658313,163.17,162.97,0.0204488]
[1633116642807,51.48376,163.16,162.93,2.08]
[1633116643008,2.10176,163.15,162.93,2.08]
[1633116643210,0.02176,163.14,162.93,2.08]
[1633116643409,27.80640391,163.12,162.94,29.59453421]
[1633116643608,2.10176,163.11,162.94,29.59453421]
[1633116645011,21.73476,163.11,162.94,29.59453421]
[1633116645612,21.713,163.11,162.94,29.59453421]
[1633116645810,0.02176,163.1,162.94,29.59453421]
[1633116646009,5.29033828,163.08,162.94,29.59453421]
[1633116646208,2.08,163.07,162.94,29.59453421]
[1633116646410,0.02176,163.06,162.94,29.59453421]
[1633116646613,2.08,163.06,162.94,29.59453421]
[1633116646816,0.02176,163.05,162.94,29.59453421]
[1633116647009,27.82816391,163.05,162.94,29.59453421]
[1633116647411,27.80640391,163.05,162.94,29.59453421]
[1633116647810,0.02176,163.04,162.94,29.59453421]
[1633116648014,27.80640391,163.05,162.94,29.59453421]
[1633116648814,2.08,163.06,162.94,29.59453421]
[1633116649213,2.08,163.1,162.94,96.94474134]
[1633116649416,0.02176,163.18,162.94,96.96519014]
[1633116649616,2.08,163.17,162.94,113.61519014]
[1633116649818,2.08,163.16,162.94,113.61519014]
[1633116650214,2.08,163.16,162.95,0.0204488]
[1633116650413,2.08,163.16,162.97,24.92496692]
[1633116650614,2.08,163.16,162.98,2.08]
[1633116650813,2.08,163.16,162.98,71.61854046]
[1633116651215,2.08,163.16,163.0,30.25942262]
[1633116651415,2.08,163.16,163.01,2.08]
[1633116651616,2.08,163.16,163.01,71.61854046]
[1633116651814,2.08,163.16,163.02,41.69400003]
[1633116652021,7.68962805,163.15,163.03,21.53389323]
[1633116652216,7.68962805,163.15,163.03,48.89028919]
[1633116652418,2.08,163.16,163.04,27.35639596]
[1633116652819,0.02176,163.21,163.04,27.35639596]
[1633116652820,0.02176,163.21,163.04,41.69400003]
[1633116653016,2.08,163.2,163.04,71.61854046]
[1633116653218,2.08,163.2,163.05,27.35639596]
[1633116653416,13.76889246,163.2,163.06,28.23635018]
[1633116653817,13.76889246,163.2,163.07,27.35639596]
[1633116656218,13.76889246,163.2,163.04,42.1821445]
[1633116656419,0.02176,163.19,163.0,27.35639596]
[1633116656619,2.08,163.18,163.0,27.35639596]
[1633116657022,2.08,163.18,163.01,10.05963291]
[1633116657220,2.08,163.18,163.01,33.95963291]
[1633116657419,2.08,163.18,163.02,27.84454043]
[1633116657820,25.53483677,163.17,163.03,29.99824389]
[1633116658021,2.10176,163.16,163.03,29.99824389]
[1633116660621,2.10176,163.16,163.03,33.54759188]
[1633116660822,2.10176,163.16,163.03,29.99824389]
[1633116661222,2.10176,163.16,163.02,3.54954503]
[1633116661621,0.02176,163.15,163.01,3.54996755]
[1633116661822,2.08,163.14,163.01,3.54996755]
[1633116662022,0.02176,163.13,163.0,10.06591486]
[1633116662223,9.66366542,163.13,163.01,25.06575122]
[1633116662427,0.02176,163.12,163.01,25.06575122]
[1633116662622,0.02176,163.12,163.02,10.06769845]
[1633116662823,2.08,163.13,163.02,10.06769845]
[1633116663026,2.08,163.13,163.03,3.55025862]
[1633116663424,24.75883666,163.13,163.02,10.06768046]
[1633116665425,2.08,163.13,163.04,24.09488469]
[1633116666624,2.08,163.13,163.05,6.51738957]
[1633116666826,2.08,163.13,163.04,24.09488469]
[1633116667026,2.08,163.13,163.05,6.51764432]
[1633116667224,27.55589777,163.12,163.05,6.51764432]
[1633116667426,27.55589777,163.12,163.03,3.55041634]
[1633116667629,2.08,163.11,163.0,10.06982572]
[1633116667824,2.08,163.11,162.98,3.5518817]
[1633116668226,2.08,163.11,162.96,3.55177245]
[1633116668424,2.08,163.11,162.96,32.21836138]
[1633116668628,2.08,163.11,162.96,28.66658893]
[1633116668826,0.02176,163.1,162.96,28.66658893]
[1633116669026,5.54084442,163.08,162.96,28.66658893]
[1633116669228,2.08,163.07,162.96,28.66658893]
[1633116669625,2.08,163.07,162.97,6.51790519]
[1633116670028,2.08,163.07,162.96,32.2179739]
[1633116670029,2.08,163.07,162.96,28.66658893]
[1633116670229,2.08,163.07,162.97,6.5173215]
[1633116671026,2.08,163.07,162.97,10.06801527]
[1633116671227,2.08,163.07,162.97,6.5173215]
[1633116673328,2.08,163.07,162.97,10.06782228]
[1633116676329,2.08,163.07,162.99,3.54994977]
[1633116676531,2.08,163.07,163.0,3.5496433]
[1633116676730,2.08,163.11,163.0,3.5496433]
[1633116676930,2.08,163.11,162.98,6.51558687]
[1633116677130,21.34657551,163.1,162.97,0.0204488]
[1633116677333,23.42657551,163.1,162.97,0.0204488]
[1633116677529,23.42657551,163.1,162.96,28.66658893]
[1633116677729,23.42657551,163.1,162.92,3.55118967]
[1633116677933,23.42657551,163.1,162.91,3.55129332]
[1633116678332,23.42657551,163.1,162.92,3.55072456]
[1633116678534,23.42657551,163.1,162.92,10.06705591]
[1633116678736,23.42657551,163.1,162.93,27.6643794]
[1633116679133,454.58713144,163.1,162.94,6.51578067]
[1633116679333,454.58713144,163.1,162.93,27.6643794]
[1633116679932,0.02176,163.09,162.93,27.6643794]
[1633116680133,11.75016668,163.07,162.93,27.6643794]
[1633116680332,2.08,163.06,162.93,27.6643794]
[1633116684139,2.08,163.06,162.91,28.01822078]
[1633116684339,2.08,163.06,162.8,122.30048473]
[1633116684340,24.46750707,162.91,162.82,508.55651805]
[1633116684539,19.9732221,162.91,162.82,5.32831725]
[1633116684738,2.08,162.9,162.79,117.2]
[1633116685141,2.08,162.9,162.77,25.40596487]
[1633116685358,2.08,162.9,162.78,5.89550803]
[1633116686142,2.08,162.9,162.77,25.40596487]
[1633116686540,2.08,162.9,162.78,5.89474904]
[1633116687340,2.08,162.9,162.77,25.40596487]
[1633116691845,19.9949821,162.91,162.77,50.49676121]
[1633116691846,19.9732221,162.91,162.77,50.49676121]
[1633116692047,19.9732221,162.91,162.77,94.75140192]
[1633116692245,19.9732221,162.91,162.78,5.89134732]
[1633116692646,19.9732221,162.91,162.79,25.09079634]
[1633116692848,19.9732221,162.91,162.8,5.89099766]
[1633116693247,19.9732221,162.91,162.81,25.09079634]
[1633116693648,19.9732221,162.91,162.83,23.03479326]
[1633116694048,19.9732221,162.91,162.84,25.09079634]
[1633116695670,19.9732221,162.91,162.81,28.10764071]
[1633116695868,2.08,162.9,162.73,2.08]
[1633116696071,2.08,162.9,162.75,24.64049078]
[1633116696670,27.29176591,162.89,162.76,23.66453465]
[1633116696871,2.08,162.88,162.76,23.66453465]
[1633116697270,27.29176591,162.89,162.76,23.66453465]
[1633116697471,2.58,162.88,162.76,23.66453465]
[1633116700773,5.58203821,162.88,162.76,23.66453465]
[1633116703574,5.58203821,162.88,162.78,0.5]
[1633116703777,2.58,162.88,162.79,29.59023895]
[1633116704176,22.5532221,162.91,162.79,57.02515195]
[1633116704378,22.5532221,162.91,162.8,32.7859796]
[1633116704577,19.9732221,162.91,162.81,2.58]
[1633116704777,19.9732221,162.91,162.82,29.2672911]
[1633116704979,19.9732221,162.91,162.82,105.00832891]
[1633116705179,19.9732221,162.91,162.83,35.35875738]
[1633116705377,19.9732221,162.91,162.83,78.31381559]
[1633116705579,19.9732221,162.91,162.84,28.48567412]
[1633116705979,2.58,162.96,162.84,28.48567412]
[1633116706180,2.58,162.96,162.84,62.58797594]
[1633116706381,2.58,162.99,162.85,31.51783453]
[1633116706579,2.58,162.99,162.85,60.00350865]
[1633116706779,2.58,162.99,162.86,28.48567412]
[1633116706981,2.58,162.99,162.86,31.06567412]
[1633116707379,2.58,162.99,162.86,65.16797594]
[1633116707781,2.58,162.99,162.87,28.48567412]
[1633116708180,2.58,162.99,162.89,21.49029352]
[1633116708581,2.58,162.99,162.9,28.48567412]
[1633116708983,2.58,162.99,162.9,62.58797594]
[1633116709381,2.58,162.99,162.91,28.48441745]
[1633116709581,2.58,162.99,162.92,27.68063565]
[1633116709981,2.58,162.99,162.92,56.17169754]
[1633116712786,2.58,162.99,162.92,90.27399936]
[1633116713885,2.58,163.03,162.92,90.27399936]
[1633116721794,75.45179382,163.27,163.06,49.58]
[1633116721795,0.02088,163.07,163.06,49.58]
[1633116721992,2.58,163.08,163.06,49.58]
[1633116722193,2.58,163.12,163.06,49.58]
[1633116722394,2.58,163.12,163.07,25.26928583]
[1633116723396,2.58,163.17,163.07,53.80028661]
[1633116723597,2.58,163.2,163.07,97.40851843]
[1633116723800,2.58,163.2,163.07,114.49783544]
[1633116723995,2.58,163.23,163.07,114.49783544]
[1633116724196,2.58,163.23,163.07,114.51871544]
[1633116731201,21.257,163.23,163.07,68.89839765]
[1633116731400,21.257,163.23,163.07,34.79609583]
[1633116731602,21.257,163.23,163.07,32.19521583]
[1633116732602,2.58,163.23,163.07,64.16588418]
[1633116736003,2.58,163.23,163.07,66.74588418]
[1633116737905,2.08,163.23,163.07,66.74588418]
[1633116740307,2.08,163.23,163.08,74.8158]
[1633116740507,2.08,163.23,163.09,9.50508]
[1633116740707,2.08,163.23,163.09,40.06741502]
[1633116741308,2.08,163.23,163.1,54.52950197]
[1633116741508,2.58,163.26,163.1,57.10950197]
[1633116741708,2.58,163.26,163.11,30.56233502]
[1633116741908,2.58,163.26,163.12,2.58]
[1633116742508,2.58,163.26,163.13,28.52771299]
[1633116747513,2.58,163.26,163.14,2.58]
[1633116749510,22.24378479,163.26,163.14,2.58]
[1633116749912,73.70578479,163.26,163.09,0.02088]
[1633116750115,73.70578479,163.26,163.01,82.54737782]
[1633116750116,1.70628292,163.24,163.06,2.60088]
[1633116750314,64.46,163.21,163.06,2.58]
[1633116750513,169.46,163.19,163.06,0.0001]
[1633116750714,64.46,163.16,163.06,0.0001]
[1633116750916,2.58,163.15,163.06,0.0001]
[1633116751114,64.48088,163.14,163.06,0.0001]
[1633116751315,64.46,163.11,163.06,0.0001]
[1633116751516,2.58,163.1,163.06,0.0001]
[1633116751714,66.0,163.08,162.9,5.329578]
[1633116751914,2.58,163.07,162.9,5.329578]
[1633116752113,33.48163782,163.07,162.89,5.89729071]
[1633116752316,113.04699063,163.06,162.9,24.00873629]
[1633116752515,2.60088,163.05,162.9,24.00873629]
[1633116752721,0.02088,163.04,162.9,24.00873629]
[1633116752915,7.33564946,163.02,162.9,24.00873629]
[1633116753115,2.60088,163.01,162.9,24.00873629]
[1633116753317,2.60088,163.01,162.88,117.2]
[1633116753318,0.02088,163.0,162.88,117.2]
[1633116753520,2.58,162.99,162.88,117.2]
[1633116753915,0.02088,162.98,162.88,117.2]
[1633116754116,2.58,162.97,162.88,117.2]
[1633116754317,2.60088,162.97,162.89,24.3410581]
[1633116754515,2.60088,162.97,162.88,117.2]
[1633116755117,2.60088,162.97,162.78,3.08]
[1633116755519,2.60088,162.97,162.79,23.89035824]
[1633116755718,2.60088,162.97,162.8,5.89177427]
[1633116756117,2.58,162.97,162.8,8.47177427]
[1633116756318,2.58,162.97,162.81,5.89148016]
[1633116756517,2.58,162.97,162.82,30.27608749]
[1633116757618,0.02088,163.01,162.82,30.27608749]
[1633116757822,21.24389061,162.99,162.82,30.27608749]
[1633116758018,2.09,162.98,162.82,30.27608749]
[1633116758219,0.02088,162.97,162.82,30.27608749]
[1633116758418,2.09,162.96,162.82,30.27608749]
[1633116758619,3.98786948,162.95,162.82,30.27608749]
[1633116758820,2.09,162.94,162.82,30.27608749]
[1633116759021,19.70488,162.94,162.82,30.27608749]
[1633116759625,19.70488,162.94,162.78,0.5]
[1633116760620,19.70488,162.94,162.79,27.26069694]
[1633116762023,2.11088,162.94,162.79,27.26069694]
[1633116762222,2.11088,162.94,162.79,51.9675307]
[1633116762624,2.11088,162.94,162.79,83.64945687]
[1633116762824,2.09,162.94,162.79,34.19853694]
[1633116763024,20.18431245,162.93,162.79,34.19853694]
[1633116763223,2.09,162.92,162.79,58.9053707]
[1633116763423,2.09,162.95,162.79,60.9953707]
[1633116763623,2.09,162.95,162.79,83.64945687]
[1633116764023,2.09,162.95,162.79,83.67033687]
[1633116764822,2.09,162.95,162.79,36.30941694]